[Event "Chpt Reg Jeunes Occitanie 2026 - Espalion"]
[Site "Espalion, France"]
[Round "7.1"]
[ECO "?"]
[Annotator "?"]
[TimeControl "1h30 + 30sec/cp"]

1. e4 {[%clk 1:30:59]} 1... c6 {[%clk 1:30:52][%emt 0:00:09]} 2. d4 {[%clk
1:31:27][%emt 0:00:03]} 2... d5 {[%clk 1:31:13][%emt 0:00:08]} 3. exd5 {[%clk
1:31:55][%emt 0:00:02]} 3... cxd5 {[%clk 1:31:34][%emt 0:00:09]} 4. c4 {[%clk
1:32:22][%emt 0:00:03]} 4... Nf6 {[%clk 1:31:39][%emt 0:00:26]} 5. Nc3 {[%clk
1:32:50][%emt 0:00:02]} 5... g6 {[%clk 1:30:19][%emt 0:01:50]} 6. Qb3 {[%clk
1:33:18][%emt 0:00:02]} 6... Bg7 {[%clk 1:29:10][%emt 0:01:38]} 7. cxd5 {[%clk
1:33:17][%emt 0:00:32]} 7... O-O {[%clk 1:29:06][%emt 0:00:34]} 8. Be2 {[%clk
1:33:41][%emt 0:00:06]} 8... Nbd7 {[%clk 1:26:37][%emt 0:03:00]} 9. Bf3 {[%clk
1:34:03][%emt 0:00:07]} 9... Nb6 {[%clk 1:23:57][%emt 0:03:10]} 10. Nge2
{[%clk 1:33:32][%emt 0:01:01]} 10... Bg4 {[%clk 1:20:22][%emt 0:04:05]} 11.
Bxg4 {[%clk 1:33:47][%emt 0:00:15]} 11... Nxg4 {[%clk 1:20:46][%emt 0:00:06]}
12. a4 {[%clk 1:33:44][%emt 0:00:34]} 12... Qc7 {[%clk 1:09:13][%emt 0:12:03]}
13. a5 {[%clk 1:22:18][%emt 0:11:55]} 13... Qc4 {[%clk 0:58:43][%emt 0:11:01]}
14. Ra3 {[%clk 1:20:41][%emt 0:02:07]} 14... Qxb3 {[%clk 0:45:14][%emt
0:13:59]} 15. Rxb3 {[%clk 1:21:09][%emt 0:00:01]} 15... Nc4 {[%clk
0:45:31][%emt 0:00:13]} 16. Rxb7 {[%clk 1:19:29][%emt 0:02:10]} 16... Nxa5
{[%clk 0:44:58][%emt 0:01:03]} 17. Rxe7 {[%clk 1:19:44][%emt 0:00:14]} 17...
Rfd8 {[%clk 0:43:20][%emt 0:02:09]} 18. Bf4 {[%clk 1:06:48][%emt 0:13:26]}
18... Bf8 {[%clk 0:38:11][%emt 0:05:39]} 19. Rc7 {[%clk 1:04:53][%emt 0:02:24]}
 19... h6 {[%clk 0:32:17][%emt 0:06:26]} 20. O-O {[%clk 0:58:08][%emt 0:07:14]}
 20... Nf6 {[%clk 0:22:51][%emt 0:09:55]} 21. Ra1 {[%clk 0:55:50][%emt
0:02:48]} 21... Nxd5 {[%clk 0:16:25][%emt 0:06:56]} 22. Rxa5 {[%clk
0:50:25][%emt 0:05:56]} 22... Nxf4 {[%clk 0:14:20][%emt 0:02:35]} 23. Nxf4
{[%clk 0:50:18][%emt 0:00:36]} 23... Bd6 {[%clk 0:13:57][%emt 0:00:53]} 24.
Nfd5 {[%clk 0:49:15][%emt 0:01:33]} 24... Bxc7 {[%clk 0:14:18][%emt 0:00:09]}
25. Nxc7 {[%clk 0:49:43][%emt 0:00:02]} 25... Rab8 {[%clk 0:10:43][%emt
0:04:01]} 26. N3b5 {[%clk 0:48:51][%emt 0:01:26]} 26... Rb7 {[%clk
0:10:57][%emt 0:00:16]} 27. Kf1 {[%clk 0:49:01][%emt 0:00:19]} 27... Rc8
{[%clk 0:08:18][%emt 0:03:08]} 28. Nd5 {[%clk 0:44:16][%emt 0:05:16]} 28...
Rc1+ {[%clk 0:08:14][%emt 0:00:36]} 29. Ke2 {[%clk 0:44:44][%emt 0:00:01]}
29... Rc2+ {[%clk 0:08:28][%emt 0:00:17]} 30. Kf3 {[%clk 0:45:12][%emt
0:00:02]} 30... Rxb2 {[%clk 0:08:41][%emt 0:00:17]} 31. Nxa7 {[%clk
0:45:03][%emt 0:00:39]} 31... R7b3+ {[%clk 0:07:15][%emt 0:01:56]} 32. Ne3
{[%clk 0:45:14][%emt 0:00:19]} 32... Rd2 {[%clk 0:07:12][%emt 0:00:32]} 33. d5
{[%clk 0:45:15][%emt 0:00:30]} 33... Rbb2 {[%clk 0:07:11][%emt 0:00:31]} 34.
Ra3 {[%clk 0:42:21][%emt 0:03:23]} 34... Rxf2+ {[%clk 0:06:51][%emt 0:00:50]}
35. Ke4 {[%clk 0:42:35][%emt 0:00:15]} 35... Rbd2 {[%clk 0:01:17][%emt
0:06:05]} 36. Nc6 {[%clk 0:38:13][%emt 0:04:51]} 36... Kg7 {[%clk
0:01:10][%emt 0:00:37]} 37. Nd4 {[%clk 0:35:49][%emt 0:02:55]} 37... Ra2
{[%clk 0:00:32][%emt 0:01:08]} 38. Rc3 {[%clk 0:35:59][%emt 0:00:20]} 38...
Ra7 {[%clk 0:00:45][%emt 0:00:17]} 39. d6 {[%clk 0:35:56][%emt 0:00:33]} 39...
Rd7 {[%clk 0:00:48][%emt 0:00:27]} 40. Kd5 {[%clk 0:35:42][%emt 0:00:44]}
40... Rf6 {[%clk 0:01:02][%emt 0:00:17]} 41. Nb5 {[%clk 0:35:26][%emt 0:00:46]}
 41... Re6 {[%clk 0:00:55][%emt 0:00:36]} 42. Kc6 {[%clk 0:33:59][%emt
0:01:57]} 42... Rd8 {[%clk 0:01:10][%emt 0:00:16]} 43. Kc7 {[%clk
0:33:55][%emt 0:00:33]} 43... Rdxd6 {[%clk 0:01:00][%emt 0:00:40]} 44. Nxd6
{[%clk 0:34:15][%emt 0:00:10]} 44... h5 {[%clk 0:01:19][%emt 0:00:12]} 45. Kc6
{[%clk 0:33:57][%emt 0:00:48]} 45... Re5 {[%clk 0:01:29][%emt 0:00:19]} 46.
Rb3 {[%clk 0:34:00][%emt 0:00:26]} 46... h4 {[%clk 0:01:34][%emt 0:00:26]} 47.
Rb7 {[%clk 0:34:02][%emt 0:00:28]} 47... Rxe3 {[%clk 0:01:56][%emt 0:00:08]}
48. Rxf7+ {[%clk 0:34:13][%emt 0:00:20]} 48... Kg8 {[%clk 0:01:43][%emt
0:00:42]} 49. Rf4 {[%clk 0:32:15][%emt 0:02:28]} 49... Re2 {[%clk
0:01:27][%emt 0:00:47]} 50. Rg4 {[%clk 0:32:25][%emt 0:00:19]} 50... h3 {[%clk
0:00:46][%emt 0:01:12]} 51. gxh3 {[%clk 0:32:40][%emt 0:00:14]} 51... Kh7
{[%clk 0:00:42][%emt 0:00:34]} 52. Rg3 {[%clk 0:32:05][%emt 0:01:05]} 52...
Rxh2 {[%clk 0:01:01][%emt 0:00:11]} 53. Kd5 {[%clk 0:32:31][%emt 0:00:04]}
53... Kh6 {[%clk 0:00:43][%emt 0:00:48]} 54. Ne4 {[%clk 0:29:01][%emt 0:03:59]}
 54... Kh5 {[%clk 0:00:42][%emt 0:00:31]} 55. Rf3 {[%clk 0:26:31][%emt
0:03:00]} 55... Kh4 {[%clk 0:00:39][%emt 0:00:34]} 56. Nf2 {[%clk
0:26:59][%emt 0:00:02]} 56... Rg2 {[%clk 0:00:42][%emt 0:00:26]} 57. Ke4
{[%clk 0:24:22][%emt 0:03:08]} 57... Rg3 {[%clk 0:00:35][%emt 0:00:37]} 58.
Rf4+ {[%clk 0:18:18][%emt 0:06:34]} 58... Kh5 {[%clk 0:01:04][%emt 0:00:01]}
59. Rf8 {[%clk 0:16:33][%emt 0:02:14]} 59... Ra3 {[%clk 0:00:41][%emt 0:00:53]}
 60. Rh8+ {[%clk 0:16:49][%emt 0:00:16]} 60... Kg5 {[%clk 0:01:07][%emt
0:00:04]} 61. h4+ {[%clk 0:17:09][%emt 0:00:09]} 61... Kf6 {[%clk
0:01:33][%emt 0:00:04]} 62. Ng4+ {[%clk 0:16:01][%emt 0:01:39]} 62... Kg7
{[%clk 0:01:54][%emt 0:00:08]} 63. Rd8 {[%emt 0:00:47]} 63... Ra4+ {[%clk
0:00:36][%emt 0:01:47]} 64. Rd4 {[%clk 0:16:00][%emt 0:00:16]} 64... Ra7
{[%clk 0:00:32][%emt 0:00:34]} 65. Kf4 {[%clk 0:16:23][%emt 0:00:03]} 65...
Rb7 {[%clk 0:00:43][%emt 0:00:23]} 66. Rd5 {[%clk 0:15:53][%emt 0:00:59]}
66... Rf7+ {[%clk 0:00:53][%emt 0:00:20]} 67. Kg5 {[%clk 0:16:07][%emt
0:00:16]} 67... Ra7 {[%clk 0:00:34][%emt 0:00:49]} 68. Ne5 {[%clk
0:16:05][%emt 0:00:32]} 68... Ra1 {[%clk 0:00:36][%emt 0:00:28]} 69. Rd7+
{[%clk 0:16:23][%emt 0:00:12]} 69... Kf8 {[%clk 0:00:46][%emt 0:00:21]} 70.
Nxg6+ {[%clk 0:14:52][%emt 0:02:01]} 70... Ke8 {[%clk 0:01:09][%emt 0:00:06]}
71. Re7+ {[%clk 0:15:14][%emt 0:00:08]} 71... Kd8 {[%clk 0:01:37][%emt
0:00:03]} 72. Re4 {[%clk 0:15:32][%emt 0:00:11]} 72... Kd7 {[%clk
0:01:58][%emt 0:00:10]} 73. h5 {[%clk 0:15:50][%emt 0:00:11]} 73... Kd6 {[%clk
0:02:24][%emt 0:00:04]} 74. h6 {[%clk 0:16:05][%emt 0:00:16]} 74... Ra7 {[%clk
0:02:27][%emt 0:00:27]} 75. Kf6 {[%clk 0:15:38][%emt 0:00:55]} 75... Rh7
{[%clk 0:02:32][%emt 0:00:26]} 76. Rh4 {[%clk 0:15:58][%emt 0:00:10]} 1-0

[White "POSOCCO DE GRANDI, Marc"]
[Black "BORCEUX, Theophile"]
[WhiteElo "1871"]
[BlackElo "1888"]
[Result "1/2-1/2"]
[Date "2026.03.07"]

[Event "Chpt Reg Jeunes Occitanie 2026 - Espalion"]
[Site "Espalion, France"]
[Round "7.2"]
[ECO "?"]
[Annotator "?"]
[TimeControl "1h30 + 30sec/cp"]

1. d4 {[%clk 1:30:57][%emt 0:00:02]} 1... d5 {[%clk 1:30:54][%emt 0:00:06]} 2.
c4 {[%clk 1:31:19][%emt 0:00:08]} 2... Nc6 {[%clk 1:31:15][%emt 0:00:09]} 3.
cxd5 {[%clk 1:30:58][%emt 0:00:52]} 3... Qxd5 {[%clk 1:31:36][%emt 0:00:07]}
4. Nf3 {[%clk 1:31:16][%emt 0:00:13]} 4... e5 {[%clk 1:28:40][%emt 0:03:26]}
5. Nc3 {[%clk 1:19:42][%emt 0:12:03]} 5... Bb4 {[%clk 1:28:52][%emt 0:00:17]}
6. Bd2 {[%clk 1:18:01][%emt 0:02:12]} 6... Bxc3 {[%clk 1:27:15][%emt 0:02:07]}
7. Bxc3 {[%clk 1:14:12][%emt 0:04:20]} 7... e4 {[%clk 1:26:20][%emt 0:01:24]}
8. Ne5 {[%clk 1:12:09][%emt 0:02:33]} 8... Nxe5 {[%clk 1:22:10][%emt 0:04:40]}
9. dxe5 {[%clk 1:12:25][%emt 0:00:14]} 9... Be6 {[%clk 1:16:47][%emt 0:05:53]}
10. Qxd5 {[%clk 1:10:58][%emt 0:01:57]} 10... Bxd5 {[%clk 1:17:10][%emt
0:00:06]} 11. e3 {[%clk 1:10:52][%emt 0:00:37]} 11... Ne7 {[%clk 1:16:08][%emt
0:01:32]} 12. Be2 {[%clk 0:59:17][%emt 0:12:05]} 12... Ng6 {[%clk
1:11:10][%emt 0:05:27]} 13. a3 {[%clk 0:49:28][%emt 0:10:20]} 13... O-O-O
{[%clk 1:08:00][%emt 0:03:40]} 14. Bh5 {[%clk 0:39:46][%emt 0:10:12]} 14...
Bc4 {[%clk 1:04:04][%emt 0:04:24]} 15. Bxg6 {[%clk 0:36:21][%emt 0:03:56]}
15... hxg6 {[%clk 1:04:18][%emt 0:00:15]} 16. Bd4 {[%clk 0:33:12][%emt
0:03:41]} 16... Bb3 {[%clk 0:56:08][%emt 0:08:37]} 17. Rc1 {[%clk
0:30:40][%emt 0:03:04]} 17... a5 {[%clk 0:48:53][%emt 0:07:45]} 18. Bb6 {[%clk
0:28:21][%emt 0:02:49]} 18... Rd7 {[%clk 0:40:25][%emt 0:08:57]} 19. Bxa5
{[%clk 0:25:35][%emt 0:03:17]} 19... Kb8 {[%clk 0:40:29][%emt 0:00:26]} 20.
O-O {[%clk 0:21:36][%emt 0:04:29]} 20... b6 {[%clk 0:40:29][%emt 0:00:31]} 21.
Bc3 {[%clk 0:21:38][%emt 0:00:27]} 21... Rd3 {[%clk 0:38:39][%emt 0:02:20]}
22. Ra1 {[%clk 0:19:39][%emt 0:02:30]} 22... b5 {[%clk 0:35:49][%emt 0:03:20]}
23. Bd4 {[%clk 0:18:17][%emt 0:01:52]} 23... Kb7 {[%clk 0:32:54][%emt 0:03:26]}
 24. Rac1 {[%clk 0:17:52][%emt 0:00:54]} 24... Bc4 {[%clk 0:30:50][%emt
0:02:33]} 25. Rfe1 {[%clk 0:17:39][%emt 0:00:44]} 25... Kc6 {[%clk
0:29:07][%emt 0:02:13]} 26. a4 {[%clk 0:17:09][%emt 0:01:00]} 26... Ra8 {[%clk
0:28:03][%emt 0:01:34]} 27. axb5+ {[%clk 0:17:00][%emt 0:00:39]} 27... Kxb5
{[%clk 0:28:32][%emt 0:00:01]} 28. Ra1 {[%clk 0:17:05][%emt 0:00:25]} 28...
Rxa1 {[%clk 0:27:41][%emt 0:01:21]} 29. Rxa1 {[%clk 0:17:29][%emt 0:00:06]}
29... c5 {[%clk 0:27:44][%emt 0:00:28]} 30. Bc3 {[%clk 0:17:52][%emt 0:00:06]}
30... Bb3 {[%clk 0:27:05][%emt 0:01:10]} 31. h4 {[%clk 0:16:56][%emt 0:01:26]}
31... Rd1+ {[%clk 0:24:58][%emt 0:02:36]} 32. Rxd1 {[%clk 0:17:08][%emt
0:00:18]} 32... Bxd1 {[%clk 0:25:23][%emt 0:00:04]} 33. e6 {[%clk
0:16:36][%emt 0:01:03]} 33... fxe6 {[%clk 0:25:48][%emt 0:00:05]} 34. Bxg7
{[%clk 0:17:03][%emt 0:00:03]} 34... Kc6 {[%clk 0:25:35][%emt 0:00:43]} 35.
Kh2 {[%clk 0:16:45][%emt 0:00:48]} 35... Kd5 {[%clk 0:25:13][%emt 0:00:52]}
36. Bc3 {[%clk 0:16:58][%emt 0:00:17]} 36... e5 {[%clk 0:25:09][%emt 0:00:34]}
37. Kh3 {[%clk 0:15:48][%emt 0:01:40]} 37... Ke6 {[%clk 0:25:22][%emt 0:00:16]}
 38. g4 {[%clk 0:15:07][%emt 0:01:11]} 38... Bf3 {[%clk 0:25:30][%emt 0:00:22]}
 39. Kg3 {[%clk 0:15:09][%emt 0:00:29]} 39... c4 {[%clk 0:25:44][%emt 0:00:14]}
 40. Kh3 {[%clk 0:14:37][%emt 0:01:04]} 40... Kf6 {[%clk 0:24:50][%emt
0:01:24]} 41. Kg3 {[%clk 0:15:00][%emt 0:00:06]} 41... Ke6 {[%clk
0:25:14][%emt 0:00:07]} 42. Kh3 {[%clk 0:15:11][%emt 0:00:19]} 42... Kd5
{[%emt 0:00:44]} 1/2-1/2

[White "LADIER, Lucas"]
[Black "AK, Maxime"]
[WhiteElo "1833"]
[BlackElo "1800"]
[Result "1-0"]
[Date "2026.03.07"]

[Event "Chpt Reg Jeunes Occitanie 2026 - Espalion"]
[Site "Espalion, France"]
[Round "7.3"]
[ECO "?"]
[Annotator "?"]
[TimeControl "1h30 + 30sec/cp"]

1. e4 {[%clk 1:30:57][%emt 0:00:02]} 1... e5 {[%clk 1:30:54][%emt 0:00:05]} 2.
Nf3 {[%clk 1:31:22][%emt 0:00:05]} 2... Nc6 {[%clk 1:31:20][%emt 0:00:05]} 3.
Bc4 {[%clk 1:31:48][%emt 0:00:05]} 3... Bc5 {[%clk 1:31:44][%emt 0:00:06]} 4.
c3 {[%clk 1:32:12][%emt 0:00:05]} 4... Nf6 {[%clk 1:32:09][%emt 0:00:05]} 5.
d4 {[%clk 1:32:37][%emt 0:00:06]} 5... exd4 {[%clk 1:32:23][%emt 0:00:15]} 6.
e5 {[%clk 1:33:00][%emt 0:00:07]} 6... d5 {[%clk 1:32:41][%emt 0:00:12]} 7.
Bb5 {[%clk 1:33:22][%emt 0:00:08]} 7... Ne4 {[%clk 1:33:06][%emt 0:00:05]} 8.
cxd4 {[%clk 1:33:43][%emt 0:00:09]} 8... Bb4+ {[%clk 1:33:27][%emt 0:00:09]}
9. Nbd2 {[%clk 1:34:04][%emt 0:00:09]} 9... Bd7 {[%clk 1:33:11][%emt 0:00:47]}
10. Qa4 {[%clk 1:31:12][%emt 0:03:22]} 10... Nxd2 {[%clk 1:25:11][%emt
0:08:29]} 11. Bxd2 {[%clk 1:30:26][%emt 0:01:17]} 11... Bxd2+ {[%clk
1:25:33][%emt 0:00:08]} 12. Nxd2 {[%clk 1:30:44][%emt 0:00:11]} 12... O-O
{[%clk 1:22:26][%emt 0:03:36]} 13. O-O {[%clk 1:27:00][%emt 0:04:15]} 13... f6
{[%clk 1:18:06][%emt 0:04:50]} 14. Rae1 {[%clk 1:22:49][%emt 0:04:41]} 14...
a6 {[%clk 1:10:11][%emt 0:08:27]} 15. Bxc6 {[%clk 1:23:01][%emt 0:00:17]}
15... Bxc6 {[%clk 1:10:36][%emt 0:00:04]} 16. Qa3 {[%clk 1:15:32][%emt
0:08:00]} 16... Bb5 {[%clk 1:09:14][%emt 0:01:51]} 17. Qg3 {[%clk
1:15:26][%emt 0:00:36]} 17... Bxf1 {[%clk 1:08:28][%emt 0:01:17]} 18. Nxf1
{[%clk 1:14:46][%emt 0:01:10]} 18... fxe5 {[%clk 1:08:13][%emt 0:00:44]} 19.
dxe5 {[%clk 1:14:59][%emt 0:00:18]} 19... Qe7 {[%clk 1:06:32][%emt 0:02:11]}
20. Ne3 {[%clk 1:13:44][%emt 0:01:45]} 20... c6 {[%clk 1:06:01][%emt 0:01:01]}
21. f4 {[%clk 1:13:41][%emt 0:00:33]} 21... Rae8 {[%clk 1:05:16][%emt 0:01:14]}
 22. Ng4 {[%clk 1:13:49][%emt 0:00:22]} 22... Kh8 {[%clk 1:03:13][%emt
0:02:33]} 23. Rf1 {[%clk 1:12:57][%emt 0:01:23]} 23... Qe6 {[%clk
0:59:06][%emt 0:04:36]} 24. h4 {[%clk 1:10:22][%emt 0:03:05]} 24... Qg6 {[%clk
0:56:59][%emt 0:02:37]} 25. Qf3 {[%clk 1:07:55][%emt 0:02:58]} 25... h5 {[%clk
0:48:27][%emt 0:09:01]} 26. Nf2 {[%clk 1:07:54][%emt 0:00:32]} 26... Rxe5
{[%clk 0:48:38][%emt 0:00:19]} 27. Nh3 {[%clk 1:07:36][%emt 0:00:48]} 27...
Ref5 {[%clk 0:46:58][%emt 0:02:09]} 28. Qb3 {[%clk 1:05:37][%emt 0:02:30]}
28... Qf7 {[%clk 0:45:35][%emt 0:01:51]} 29. Ng5 {[%clk 1:05:13][%emt 0:00:55]}
 29... Qe7 {[%clk 0:37:34][%emt 0:08:31]} 30. g3 {[%clk 1:04:55][%emt 0:00:49]}
 30... Re8 {[%clk 0:36:47][%emt 0:01:16]} 31. Kg2 {[%clk 1:02:55][%emt
0:02:30]} 31... d4 {[%clk 0:33:47][%emt 0:03:30]} 32. Rf2 {[%clk 1:02:32][%emt
0:00:53]} 32... Qd7 {[%clk 0:32:04][%emt 0:02:14]} 33. Qd1 {[%clk
0:59:38][%emt 0:03:23]} 33... g6 {[%clk 0:24:09][%emt 0:08:25]} 34. Nf3 {[%clk
0:57:54][%emt 0:02:15]} 34... Qd5 {[%clk 0:23:16][%emt 0:01:23]} 35. Kh2
{[%clk 0:58:02][%emt 0:00:21]} 35... Qe4 {[%clk 0:22:30][%emt 0:01:16]} 36.
Rd2 {[%clk 0:54:38][%emt 0:03:55]} 36... c5 {[%clk 0:21:12][%emt 0:01:48]} 37.
b4 {[%clk 0:54:29][%emt 0:00:39]} 37... d3 {[%clk 0:21:08][%emt 0:00:34]} 38.
Rxd3 {[%clk 0:45:51][%emt 0:09:08]} 38... Qe2+ {[%clk 0:21:24][%emt 0:00:14]}
39. Qxe2 {[%clk 0:46:10][%emt 0:00:10]} 39... Rxe2+ {[%clk 0:21:47][%emt
0:00:07]} 40. Kh3 {[%clk 0:46:24][%emt 0:00:16]} 40... Rxa2 {[%clk
0:20:36][%emt 0:01:41]} 41. Rd8+ {[%clk 0:45:22][%emt 0:01:33]} 41... Kg7
{[%clk 0:20:53][%emt 0:00:10]} 42. Ng5 {[%clk 0:43:41][%emt 0:02:14]} 42...
Rxg5 {[%clk 0:19:19][%emt 0:02:03]} 43. hxg5 {[%clk 0:43:55][%emt 0:00:16]}
43... cxb4 {[%clk 0:19:37][%emt 0:00:12]} 44. Rd7+ {[%clk 0:44:11][%emt
0:00:14]} 44... Kf8 {[%clk 0:19:55][%emt 0:00:11]} 45. Rxb7 {[%clk
0:44:30][%emt 0:00:12]} 45... a5 {[%clk 0:20:16][%emt 0:00:10]} 46. Rb6 {[%clk
0:44:23][%emt 0:00:37]} 46... Kf7 {[%clk 0:17:03][%emt 0:03:42]} 47. Rb7+
{[%clk 0:44:36][%emt 0:00:18]} 47... Ke6 {[%clk 0:17:01][%emt 0:00:31]} 48.
Rb6+ {[%clk 0:44:45][%emt 0:00:22]} 48... Kf5 {[%clk 0:17:04][%emt 0:00:26]}
49. Rf6+ {[%clk 0:44:59][%emt 0:00:16]} 49... Ke4 {[%clk 0:17:13][%emt
0:00:21]} 50. f5 {[%clk 0:41:33][%emt 0:03:56]} 50... gxf5 {[%clk
0:11:58][%emt 0:05:46]} 51. g6 {[%clk 0:41:41][%emt 0:00:22]} 51... Ke5 {[%clk
0:12:00][%emt 0:00:28]} 52. g7 {[%clk 0:40:11][%emt 0:02:00]} 52... Kxf6
{[%clk 0:12:24][%emt 0:00:05]} 53. g8=Q {[%clk 0:40:02][%emt 0:01:22]} 53...
Ra3 {[%clk 0:12:42][%emt 0:00:12]} 54. Kh4 {[%clk 0:40:03][%emt 0:00:29]}
54... Ke5 {[%clk 0:12:31][%emt 0:00:41]} 55. Qc4 {[%clk 0:37:34][%emt 0:02:59]}
 55... Kf6 {[%clk 0:10:45][%emt 0:02:16]} 56. Qd5 {[%clk 0:36:52][%emt
0:01:12]} 56... Re3 {[%clk 0:09:45][%emt 0:01:29]} 57. Qxa5 {[%clk
0:35:34][%emt 0:01:49]} 57... Re4+ {[%clk 0:10:04][%emt 0:00:11]} 58. Kxh5
{[%clk 0:30:12][%emt 0:05:52]} 58... Rg4 {[%clk 0:10:14][%emt 0:00:19]} 59.
Qb6+ {[%clk 0:29:53][%emt 0:00:50]} 59... Ke5 {[%clk 0:10:13][%emt 0:00:32]}
60. Qc5+ {[%clk 0:29:52][%emt 0:00:30]} 60... Ke6 {[%clk 0:10:28][%emt
0:00:14]} 61. Qc8+ {[%clk 0:29:34][%emt 0:00:49]} 61... Kf6 {[%clk
0:10:19][%emt 0:00:39]} 62. Qe8 {[%clk 0:26:47][%emt 0:03:16]} 62... Rg5+
{[%clk 0:08:32][%emt 0:02:18]} 63. Kh4 {[%clk 0:26:43][%emt 0:00:34]} 63...
Rg4+ {[%clk 0:08:50][%emt 0:00:12]} 64. Kh3 {[%clk 0:27:04][%emt 0:00:08]}
64... Re4 {[%clk 0:09:05][%emt 0:00:16]} 65. Qf8+ {[%clk 0:26:29][%emt
0:01:06]} 65... Ke6 {[%clk 0:09:14][%emt 0:00:21]} 66. Qh6+ {[%clk
0:26:27][%emt 0:00:31]} 66... Ke5 {[%clk 0:09:23][%emt 0:00:21]} 67. Qc6
{[%clk 0:24:52][%emt 0:02:05]} 67... Rg4 {[%clk 0:09:35][%emt 0:00:18]} 68.
Kh2 {[%clk 0:22:45][%emt 0:02:37]} 68... Re4 {[%clk 0:09:56][%emt 0:00:07]}
69. Kg2 {[%clk 0:22:37][%emt 0:00:39]} 69... Re2+ {[%clk 0:10:00][%emt
0:00:25]} 70. Kf3 {[%clk 0:22:41][%emt 0:00:27]} 70... Re4 {[%clk
0:10:23][%emt 0:00:06]} 71. Qc5+ {[%clk 0:22:46][%emt 0:00:26]} 71... Ke6
{[%clk 0:10:35][%emt 0:00:17]} 72. Qc6+ {[%clk 0:21:55][%emt 0:01:21]} 72...
Ke5 {[%clk 0:10:58][%emt 0:00:06]} 73. Qe8+ {[%clk 0:21:51][%emt 0:00:34]}
73... Kf6 {[%clk 0:11:11][%emt 0:00:17]} 74. Qf8+ {[%clk 0:21:55][%emt
0:00:27]} 74... Ke5 {[%clk 0:11:20][%emt 0:00:19]} 75. Qe7+ {[%clk
0:21:40][%emt 0:00:46]} 75... Kd5 {[%clk 0:06:34][%emt 0:05:17]} 76. Qf6
{[%clk 0:21:20][%emt 0:00:50]} 76... b3 {[%clk 0:03:48][%emt 0:03:14]} 77.
Qxf5+ {[%clk 0:20:53][%emt 0:00:59]} 77... Re5 {[%clk 0:04:13][%emt 0:00:05]}
78. Qd3+ {[%clk 0:21:02][%emt 0:00:21]} 1-0

[White "KERCKHOVE, Cody"]
[Black "DARTHENAY, Antoine"]
[WhiteElo "1588"]
[BlackElo "1823"]
[Result "0-1"]
[Date "2026.03.07"]

[Event "Chpt Reg Jeunes Occitanie 2026 - Espalion"]
[Site "Espalion, France"]
[Round "7.4"]
[ECO "?"]
[Annotator "?"]
[TimeControl "1h30 + 30sec/cp"]

1. e4 {[%clk 1:30:56][%emt 0:00:02]} 1... c6 {[%clk 1:30:55][%emt 0:00:06]} 2.
d4 {[%clk 1:31:19][%emt 0:00:06]} 2... d5 {[%clk 1:31:21][%emt 0:00:04]} 3.
exd5 {[%clk 1:31:42][%emt 0:00:06]} 3... cxd5 {[%clk 1:31:46][%emt 0:00:06]}
4. Nf3 {[%clk 1:31:58][%emt 0:00:13]} 4... Nf6 {[%clk 1:31:47][%emt 0:00:29]}
5. h3 {[%clk 1:30:47][%emt 0:01:41]} 5... Bf5 {[%clk 1:30:47][%emt 0:01:31]}
6. Bd3 {[%clk 1:28:47][%emt 0:02:29]} 6... Bxd3 {[%clk 1:30:48][%emt 0:00:30]}
7. Qxd3 {[%clk 1:29:08][%emt 0:00:08]} 7... Nc6 {[%clk 1:30:27][%emt 0:00:51]}
8. c3 {[%clk 1:26:54][%emt 0:02:44]} 8... e6 {[%clk 1:30:12][%emt 0:00:46]} 9.
O-O {[%clk 1:21:47][%emt 0:05:37]} 9... Qc7 {[%clk 1:28:21][%emt 0:02:20]} 10.
Re1 {[%clk 1:16:51][%emt 0:05:26]} 10... Bd6 {[%clk 1:26:52][%emt 0:02:00]}
11. b3 {[%clk 1:10:55][%emt 0:06:25]} 11... O-O {[%clk 1:24:58][%emt 0:02:24]}
12. Ba3 {[%clk 1:06:35][%emt 0:04:51]} 12... Rac8 {[%clk 1:22:25][%emt
0:03:03]} 13. Bxd6 {[%clk 1:05:09][%emt 0:01:56]} 13... Qxd6 {[%clk
1:22:48][%emt 0:00:07]} 14. Nbd2 {[%clk 1:05:02][%emt 0:00:36]} 14... a6
{[%clk 1:21:02][%emt 0:02:17]} 15. Ne5 {[%clk 0:53:26][%emt 0:12:06]} 15... b5
{[%clk 1:14:24][%emt 0:07:08]} 16. Nxc6 {[%clk 0:52:29][%emt 0:01:27]} 16...
Rxc6 {[%clk 1:12:40][%emt 0:02:13]} 17. Rac1 {[%clk 0:51:24][%emt 0:01:35]}
17... Rfc8 {[%clk 1:11:41][%emt 0:01:30]} 18. Rc2 {[%clk 0:48:14][%emt
0:03:40]} 18... h6 {[%clk 1:07:27][%emt 0:04:44]} 19. Re3 {[%clk 0:40:41][%emt
0:08:03]} 19... Nh5 {[%clk 1:01:56][%emt 0:06:01]} 20. Rc1 {[%clk
0:41:01][%emt 0:00:10]} 20... Nf4 {[%clk 0:58:55][%emt 0:03:31]} 21. Qc2
{[%clk 0:40:06][%emt 0:01:24]} 21... b4 {[%clk 0:56:41][%emt 0:02:45]} 22. Nf3
{[%clk 0:30:04][%emt 0:10:31]} 22... Rxc3 {[%clk 0:56:08][%emt 0:01:03]} 23.
Rxc3 {[%clk 0:29:33][%emt 0:01:01]} 23... Rxc3 {[%clk 0:56:27][%emt 0:00:12]} 0-1

[White "DESPRATS EXPOSITO, Justin"]
[Black "DURKA-VINCENDET, Yan"]
[WhiteElo "1663"]
[BlackElo "1761"]
[Result "0-1"]
[Date "2026.03.07"]